bitfinex-derivatives/quotes_ETHF0:USTF0_20250101
["timestamp","ask_amount","ask_price","bid_price","bid_amount"]
[1735751965122,10.568756,3328.0,3326.9,3.2078]
[1735751965315,3.2078,3328.0,3327.3,3.2078]
[1735751965519,0.30114,3327.5,3327.3,3.50895]
[1735751965824,0.30113,3327.7,3327.4,0.30114]
[1735751966029,0.3011,3327.9,3327.4,0.4451]
[1735751966322,0.30114,3327.5,3327.4,0.4451]
[1735751967023,0.30114,3327.5,3326.9,3.2078]
[1735751967024,3.2078,3327.5,3326.9,3.2078]
[1735751967225,0.30117,3327.2,3327.0,0.30118]
[1735751967722,0.30116,3327.3,3327.0,0.30118]
[1735751967929,0.30116,3327.3,3327.1,0.30117]
[1735751968124,0.30116,3327.2,3327.0,0.30118]
[1735751968525,0.30116,3327.2,3326.6,0.9093]
[1735751968725,0.30116,3327.3,3327.1,0.30117]
[1735751968923,3.6694,3328.1,3327.0,3.2078]
[1735751969137,0.30113,3327.6,3327.4,3.50894]
[1735751969425,3.6694,3328.1,3327.4,3.2078]
[1735751969721,0.30114,3327.6,3327.4,3.2078]
[1735751969920,0.30114,3327.5,3327.4,3.2078]
[1735751970123,3.91699503,3328.1,3327.1,0.437]
[1735751970321,3.91699503,3328.1,3327.4,3.2078]
[1735751970518,0.30114,3327.5,3327.4,3.2078]
[1735751971028,0.30112,3327.7,3327.4,3.50894]
[1735751971330,0.30113,3327.6,3327.4,3.50894]
[1735751971931,0.30112,3327.7,3327.5,0.30113]
[1735751972119,3.91699503,3328.1,3327.4,3.2078]
[1735751972428,0.30113,3327.6,3327.4,3.50894]
[1735751972620,0.30112,3327.8,3327.5,0.30113]
[1735751972825,0.30112,3327.7,3327.5,1.17983]
[1735751973026,0.30112,3327.8,3327.6,0.30112]
[1735751973323,0.30109,3328.0,3327.5,1.17983]
[1735751973519,0.30113,3327.6,3327.5,1.17983]
[1735751973726,3.91699503,3328.1,3327.5,1.17983]
[1735751974122,0.26463956,3327.6,3327.5,0.8787]
[1735751974332,2.29647504,3328.0,3327.4,3.2078]
[1735751974532,0.30114,3327.5,3327.4,3.2078]
[1735751976424,4.42212,3328.1,3327.4,3.2078]
[1735751976730,0.30113,3327.6,3327.5,0.30113]
[1735751977327,0.30112,3327.7,3327.5,0.30113]
[1735751978031,3.90806227,3328.1,3327.4,3.2078]
[1735751978326,3.44646227,3328.1,3327.4,3.2078]
[1735751978626,0.30105,3328.5,3327.9,3.5089]
[1735751978831,5.93887504,3328.7,3327.9,3.2078]
[1735751979027,0.30108,3328.2,3328.0,0.30109]
[1735751979228,0.30108,3328.2,3328.0,1.17749]
[1735751979423,0.30108,3328.1,3328.0,0.8764]
[1735751979618,0.75265,3328.4,3327.9,3.2078]
[1735751979826,0.30109,3328.0,3327.9,3.2078]
[1735751982335,0.30109,3328.0,3327.9,3.5089]
[1735751982826,0.30107,3328.3,3328.1,0.30108]
[1735751983132,0.30109,3328.0,3327.9,3.2078]
[1735751985330,0.30109,3328.0,3327.9,3.5089]
[1735751985736,0.30108,3328.2,3328.1,0.30108]
[1735751985933,0.23588376,3328.3,3327.9,3.5089]
[1735751986125,1.21032,3328.6,3327.9,3.5089]
[1735751986126,0.30109,3328.0,3327.9,3.5089]
[1735751986527,0.30109,3328.0,3327.9,3.2078]
[1735751987327,0.30114,3327.5,3327.4,3.6729]
[1735751987524,0.30112,3327.7,3327.6,0.30112]
[1735751987833,0.30114,3327.5,3327.4,3.6729]
[1735751988830,0.30114,3327.5,3327.4,3.97405]
[1735751989029,0.4254,3327.8,3327.4,3.6729]
[1735751989237,2.29647504,3328.0,3327.4,3.6729]
[1735751989432,0.30114,3327.6,3327.4,3.6729]
[1735751989734,0.30112,3327.7,3327.5,0.30114]
[1735751989935,0.30112,3327.7,3327.5,0.73494]
[1735751990128,0.30112,3327.7,3327.6,0.30113]
[1735751990329,0.30111,3327.9,3327.8,0.30111]
[1735751990634,0.30111,3327.9,3327.8,3.50891]
[1735751990936,0.3011,3328.0,3327.9,0.3011]
[1735751991136,0.4254,3328.2,3327.8,3.2078]
[1735751991337,0.30109,3328.0,3327.9,0.3011]
[1735751991733,0.24215279,3328.2,3327.8,3.2078]
[1735751991931,4.0778,3328.5,3327.8,3.2078]
[1735751992231,0.3011,3327.9,3327.8,3.2078]
[1735751992433,0.30112,3327.7,3327.6,0.30112]
[1735751993029,0.75269,3328.2,3327.5,0.4338]
[1735751993236,0.75269,3328.2,3327.7,0.30112]
[1735751993237,0.30112,3327.8,3327.7,0.30112]
[1735751993630,0.30112,3327.8,3327.6,3.2078]
[1735751993836,0.30112,3327.8,3327.7,0.30112]
[1735751995239,0.30111,3327.9,3327.8,0.30111]
[1735751995634,0.3011,3328.0,3327.8,0.3011]
[1735751995829,0.2379261,3328.1,3327.9,0.3011]
[1735751996036,0.2379261,3328.1,3328.0,3.50889]
[1735751996635,0.30103,3328.7,3328.6,0.30104]
[1735751997340,0.30105,3328.5,3328.4,3.2078]
[1735751998338,3.2078,3328.5,3328.0,3.2078]
[1735751998538,0.30112,3327.7,3327.6,0.30112]
[1735751999040,0.30113,3327.6,3327.5,0.30113]
[1735751999241,2.73807504,3328.1,3327.1,3.2078]
[1735751999444,0.30112,3327.7,3327.6,0.30112]
[1735752000140,2.73807504,3328.1,3327.7,0.30112]
[1735752000340,0.30111,3327.9,3327.8,0.30111]
[1735752000638,0.30112,3327.7,3327.6,0.30113]
[1735752000945,0.30112,3327.8,3327.4,0.4361]
[1735752001242,3.50891,3327.9,3327.7,0.30112]
[1735752001538,0.30111,3327.8,3327.7,0.30112]
[1735752001739,14.88319932,3327.9,3327.8,0.30111]
[1735752001943,11.67539932,3327.9,3327.8,0.30111]
[1735752002142,11.97649932,3327.9,3327.8,0.30111]
[1735752002642,11.67539932,3327.9,3327.8,0.30111]
[1735752002844,11.67539932,3327.9,3327.8,3.50891]
[1735752004236,11.67539932,3328.3,3328.2,0.30107]
[1735752004441,11.67539932,3328.3,3328.2,3.50887]
[1735752005247,11.97641932,3328.8,3328.7,0.30103]
[1735752005745,11.67539932,3328.8,3328.2,3.2078]
[1735752005945,0.30104,3328.6,3328.5,0.30104]
[1735752006243,0.30105,3328.5,3328.4,0.30105]
[1735752006938,11.67539932,3328.8,3328.2,3.2078]
[1735752007138,0.30104,3328.7,3328.6,0.30104]
[1735752008548,11.67539932,3328.8,3328.2,3.2078]
[1735752008843,11.97642932,3328.8,3328.7,0.30103]
[1735752010047,11.67539932,3328.8,3328.7,0.30103]
[1735752010840,11.67539932,3328.8,3328.7,1.17843]
[1735752012148,11.67539932,3328.8,3327.8,2.29647504]
[1735752012347,12.42796932,3328.8,3328.1,0.72538]
[1735752012539,0.466,3328.7,3328.2,3.50887]
[1735752012740,0.30107,3328.3,3328.2,3.50887]
[1735752012942,0.3011,3327.9,3327.8,0.30111]
[1735752013246,0.3011,3328.0,3327.7,3.6321]
[1735752013447,0.30109,3328.1,3327.9,0.30109]
[1735752013743,3.96043,3328.5,3327.9,0.30109]
[1735752013946,3.04912504,3328.4,3327.8,0.30111]
[1735752014146,0.3011,3328.0,3327.9,0.3011]
[1735752014345,0.3011,3328.0,3327.8,0.30111]
[1735752015147,3.2078,3328.5,3327.7,3.6321]
[1735752015348,0.30109,3328.0,3327.9,0.3011]
[1735752016242,3.2078,3328.5,3327.7,3.6321]
[1735752016446,0.30108,3328.1,3328.0,0.30109]
[1735752017550,0.30108,3328.1,3327.9,0.3011]
[1735752017747,3.2078,3328.5,3327.8,0.3011]
[1735752017748,0.3011,3328.0,3327.8,0.3011]
[1735752017953,3.2078,3328.5,3327.8,0.3011]
[1735752019252,0.3011,3327.9,3327.8,0.3011]
[1735752019750,0.4507,3328.6,3327.7,3.6321]
[1735752019943,0.30106,3328.4,3328.2,3.2078]
[1735752020142,0.30106,3328.4,3328.2,3.50887]
[1735752020342,0.30105,3328.5,3328.2,3.50887]
[1735752020544,0.30105,3328.5,3328.2,3.2078]
[1735752020755,0.30105,3328.5,3328.3,0.30106]
[1735752021051,0.30105,3328.5,3328.3,0.76906]
[1735752021453,0.30105,3328.5,3328.4,0.30105]
[1735752021751,0.30107,3328.3,3328.2,3.2078]
[1735752021952,0.30108,3328.1,3328.0,0.4591]
[1735752022249,0.30108,3328.2,3328.0,0.30109]
[1735752022552,0.30107,3328.3,3328.2,0.30107]
[1735752022740,0.30106,3328.4,3328.2,0.30107]
[1735752023442,0.30107,3328.3,3328.2,0.30107]
[1735752023645,0.30107,3328.3,3328.1,3.50888]
[1735752024152,11.68360139,3328.6,3328.1,3.2078]
[1735752024350,11.68360139,3328.6,3328.2,0.30107]
[1735752024654,0.30107,3328.3,3328.1,3.50888]
[1735752025354,0.30107,3328.2,3328.1,3.50888]
[1735752025854,0.30107,3328.3,3328.1,3.50888]
[1735752026457,0.30107,3328.2,3328.1,3.50888]
[1735752026855,0.30109,3328.0,3327.9,0.929]
[1735752027057,0.30112,3327.7,3327.6,3.6669]
[1735752027257,0.30112,3327.7,3327.6,3.2078]
[1735752027756,0.30112,3327.7,3327.6,3.22790543]
[1735752028058,0.30112,3327.7,3327.6,0.02010543]
[1735752028457,0.72522,3327.7,3327.6,0.02010543]
[1735752029357,0.72522,3327.7,3327.6,0.01001472]
[1735752032559,0.30112,3327.7,3327.6,0.01001472]
[1735752033258,3.2078,3327.8,3327.6,0.01001472]
[1735752033458,0.30109,3328.0,3327.6,3.51893472]
[1735752033659,3.2078,3328.2,3327.9,0.3011]
[1735752033859,0.30106,3328.4,3328.2,0.30107]
[1735752034063,11.68360139,3328.6,3328.1,3.2078]
[1735752034251,0.30105,3328.5,3328.1,3.2078]
[1735752034457,0.30106,3328.4,3328.3,0.01001472]
[1735752036660,11.68360139,3328.5,3328.4,0.30106]
[1735752036964,9.96760139,3328.5,3328.4,0.73076]
[1735752037153,9.96760139,3328.5,3328.4,1.15586]
[1735752037353,9.96760139,3328.5,3328.4,1.16587472]
[1735752038359,3.2078,3329.3,3328.4,1.16587472]
[1735752038360,0.30103,3328.8,3328.6,0.30103]
[1735752038561,0.30103,3328.8,3328.7,0.454]
[1735752039461,0.30103,3328.8,3328.7,0.46401472]
[1735752039663,0.30103,3328.8,3328.7,0.76504472]
[1735752039965,0.30101,3328.9,3328.7,0.76504472]
[1735752040162,3.2078,3329.3,3328.7,0.46401472]
[1735752040360,0.30099,3329.1,3328.9,0.301]
[1735752040562,0.30099,3329.1,3329.0,0.01001472]
[1735752041162,0.30099,3329.2,3329.0,0.01001472]
[1735752041363,0.30099,3329.2,3329.0,0.31101472]
[1735752041564,3.50878,3329.3,3329.1,0.31100472]
[1735752041762,2.29647504,3329.5,3329.1,0.31100472]
[1735752042063,0.30097,3329.4,3329.2,0.4322]
[1735752042266,0.30097,3329.4,3329.2,0.73318]
[1735752042566,0.23616534,3329.6,3329.3,0.01001472]
[1735752042864,0.30097,3329.4,3329.3,0.01001472]
[1735752043963,3.2078,3329.7,3329.3,0.01001472]
[1735752044359,0.30094,3329.8,3329.6,3.2078]
[1735752044567,0.30094,3329.8,3329.7,0.01001472]
[1735752045168,2.59741504,3329.8,3329.7,0.01001472]
[1735752045968,7.59741504,3329.8,3329.7,1e-08]
[1735752046267,0.7524,3329.5,3328.8,0.4574]
[1735752046469,0.301,3329.0,3328.8,0.4574]
[1735752047875,3.2078,3329.5,3328.9,0.30101]
[1735752048566,0.301,3329.1,3328.8,0.75842]
[1735752048873,0.301,3329.0,3328.8,0.75842]
[1735752049074,3.45419379,3329.5,3328.8,0.75842]
[1735752049368,3.2078,3329.5,3328.9,0.301]
[1735752049563,0.30099,3329.1,3328.9,0.301]
[1735752050273,0.30101,3329.0,3328.8,0.75842]
[1735752050674,3.2078,3329.5,3328.8,0.4574]
[1735752050870,0.301,3329.1,3328.9,0.30101]
[1735752051074,0.301,3329.0,3328.9,0.30101]
[1735752051373,0.301,3329.1,3328.9,0.30101]
[1735752051573,3.2078,3329.5,3328.8,0.4574]
[1735752051869,2.72637504,3329.7,3329.0,3.2078]
[1735752052078,0.30097,3329.4,3329.2,0.30098]
[1735752052567,2.72637504,3329.7,3329.1,0.4229]
[1735752052763,0.30098,3329.2,3329.1,0.4229]
[1735752052966,0.30098,3329.2,3329.1,0.72389]
[1735752053370,2.72637504,3329.7,3329.1,0.72389]
[1735752053576,0.30098,3329.3,3329.1,0.72389]
[1735752053876,2.72637504,3329.7,3329.1,0.72389]
[1735752054377,0.30098,3329.3,3329.1,0.72389]
[1735752054970,14.40152619,3329.7,3329.1,0.4229]
[1735752055165,0.30099,3329.1,3329.0,3.2078]
[1735752055972,0.30101,3328.9,3328.8,0.4574]
[1735752056272,3.2078,3329.2,3328.4,0.4395]
[1735752056273,0.30105,3328.5,3328.4,0.4395]
[1735752056679,0.30105,3328.5,3328.4,0.74056]
[1735752056980,0.30105,3328.5,3328.4,0.4395]
[1735752057176,0.30105,3328.5,3328.4,3.94836]
[1735752057372,0.30105,3328.5,3328.4,3.94835]
[1735752057675,0.30104,3328.6,3328.5,0.30104]
[1735752057875,0.30105,3328.5,3328.4,3.94835]
[1735752059573,0.30104,3328.6,3328.5,0.30104]
[1735752059770,1.218,3329.1,3328.4,3.6473]
[1735752059971,0.30103,3328.8,3328.7,0.30102]
[1735752060173,3.2078,3329.2,3328.4,3.6473]
[1735752060478,0.30098,3329.2,3329.1,3.50879]
[1735752061275,11.67515115,3329.7,3329.1,3.2078]
[1735752061477,11.67515115,3329.7,3329.2,0.8803]
[1735752061776,0.30098,3329.2,3329.1,3.2078]
[1735752062770,0.30105,3328.5,3328.4,1.314]
[1735752062971,0.30104,3328.6,3328.4,4.82285]
[1735752063174,0.45,3328.9,3328.4,4.82285]
[1735752063374,0.45,3328.9,3328.0,3.2078]
[1735752063578,0.75256,3328.8,3328.1,0.883]
[1735752063775,0.45,3328.9,3328.1,0.883]
[1735752063972,0.30107,3328.2,3328.1,1.18408]
[1735752064578,0.30107,3328.2,3328.1,0.883]
[1735752064982,0.30107,3328.2,3328.1,1.18408]
[1735752065175,5.50427504,3328.6,3328.1,0.883]
[1735752065372,5.95777504,3328.6,3328.1,1.18408]
[1735752065576,0.30107,3328.3,3328.2,0.30107]
[1735752065981,0.30107,3328.3,3328.1,1.18408]
[1735752066275,0.30107,3328.3,3328.2,0.30107]
[1735752067370,2.74997504,3328.6,3328.3,0.30106]
[1735752067371,0.30106,3328.4,3328.3,0.30106]
[1735752067778,0.30106,3328.4,3328.2,0.30107]
[1735752068182,0.30107,3328.2,3328.1,1.18408]
[1735752068480,2.74997504,3328.6,3328.2,0.30107]
[1735752068782,0.30106,3328.4,3328.2,0.30107]
[1735752069582,0.30105,3328.5,3328.3,0.30106]
[1735752070275,14.84572619,3328.9,3328.3,0.30106]
[1735752070476,0.30106,3328.4,3328.3,0.30106]
[1735752070777,14.41552619,3328.9,3328.2,0.4501]
[1735752070982,0.30105,3328.6,3328.4,3.50885]
[1735752071683,0.30103,3328.7,3328.5,0.30105]
[1735752071975,11.67515115,3328.9,3328.4,3.2078]
[1735752072182,11.67515115,3328.9,3328.8,0.30102]
[1735752072876,11.97612115,3329.3,3329.2,0.30098]
[1735752073075,11.97612115,3329.3,3329.1,0.30099]
[1735752073572,11.97612115,3329.3,3329.2,0.30098]
[1735752073783,11.67515115,3329.3,3329.2,3.50878]
[1735752074281,11.67515115,3329.3,3329.2,3.2078]
[1735752074579,0.30107,3328.3,3328.0,0.30109]
[1735752074785,2.29647504,3328.3,3328.1,0.8823]
[1735752074981,0.30107,3328.2,3328.1,0.8823]
[1735752079680,0.30107,3328.2,3328.1,0.4278]
[1735752080485,0.30107,3328.2,3327.6,0.4443]
[1735752080486,0.30112,3327.7,3327.6,0.4443]
[1735752080685,2.29647504,3327.7,3327.0,0.8746]
[1735752080880,0.30115,3327.4,3327.1,0.30117]
[1735752081082,0.30115,3327.4,3327.2,0.30116]
[1735752081282,0.30116,3327.3,3327.0,1.17578]
[1735752081578,2.29647504,3327.7,3327.0,0.8746]
[1735752081783,0.30115,3327.5,3327.2,0.30116]
[1735752081978,0.30115,3327.4,3327.2,0.30116]
[1735752082285,0.30113,3327.6,3327.4,0.30114]
[1735752082581,0.30113,3327.6,3327.5,0.4262]
[1735752088392,2.29647504,3327.7,3327.0,0.8746]
[1735752088589,0.30116,3327.2,3327.1,0.4259]
[1735752090591,0.30117,3327.1,3327.0,0.4452]
[1735752090799,5.80544504,3327.1,3327.0,0.4452]
[1735752092586,3.2078,3327.1,3327.0,0.4452]
[1735752092891,11.67515115,3327.3,3327.0,0.4452]
[1735752093290,11.97631115,3327.3,3327.1,0.30117]
[1735752093487,11.67515115,3327.3,3327.2,0.30116]
[1735752093883,10.90546644,3327.3,3327.2,6.55016]
[1735752094084,6.01463644,3327.3,3327.2,6.55016]
[1735752094288,2.29647504,3328.9,3327.2,47.049]
[1735752094488,2.29647504,3328.9,3328.7,0.30102]
[1735752094489,3.0056,3328.8,3328.7,0.30102]
[1735752094688,0.30102,3328.8,3328.7,0.30102]
[1735752094890,0.0987,3329.3,3328.4,3.2078]
[1735752095085,0.30098,3329.3,3329.1,0.30099]
[1735752095393,2.29647504,3329.5,3329.4,0.30097]
[1735752095590,2.59743504,3329.5,3329.4,3.2078]
[1735752096593,0.30097,3329.4,3329.2,0.30098]
[1735752097490,0.30097,3329.4,3329.0,3.2078]
[1735752097491,2.59743504,3329.5,3329.3,0.30097]
[1735752097991,2.29647504,3329.8,3329.0,3.2078]
[1735752098188,0.30096,3329.5,3329.3,0.30097]
[1735752098384,3.0056,3329.7,3329.0,8.2078]
[1735752098590,2.29647504,3329.8,3329.0,8.2078]
[1735752098889,5.60301504,3329.8,3329.5,0.30095]
[1735752099488,0.30094,3329.7,3329.5,0.30095]
[1735752100493,0.30097,3329.4,3329.2,0.30098]
[1735752100688,3.0056,3329.3,3329.0,3.2078]
[1735752100997,0.30101,3328.9,3328.7,1.21493]
[1735752101289,3.3066,3329.0,3328.8,0.30101]
[1735752101495,3.2078,3330.1,3329.0,0.75249]
[1735752101684,5.5085,3330.1,3329.7,3.2078]
[1735752101886,0.30092,3329.9,3329.7,3.2078]
[1735752102083,2.3007,3329.8,3329.5,3.2078]
[1735752102288,3.2078,3330.1,3329.9,0.30092]
[1735752102484,2.3007,3330.0,3329.9,0.30092]
[1735752102683,5.5085,3330.1,3330.0,0.30091]
[1735752102894,5.80941,3330.1,3329.8,0.30093]
[1735752103086,5.5085,3330.1,3329.6,0.4608]
[1735752103283,5.80941,3330.1,3329.9,0.30092]
[1735752103692,5.80941,3330.1,3329.6,0.4608]
[1735752103893,2.60162,3330.0,3329.8,0.30093]
[1735752104996,2.3007,3330.0,3329.8,0.30093]
[1735752105890,2.3007,3330.0,3329.9,0.30092]
[1735752106194,0.30093,3329.9,3329.6,0.30094]
[1735752106384,0.30093,3329.9,3329.7,0.30094]
[1735752107690,3.2078,3330.4,3329.7,3.2078]
[1735752107889,0.30093,3329.8,3329.7,3.2078]
[1735752108189,0.30093,3329.8,3329.7,3.50874]
[1735752108785,0.30093,3329.8,3329.7,3.2078]
[1735752108992,2.60163,3329.8,3329.7,3.2078]
[1735752109796,2.3007,3329.8,3329.7,3.50874]
[1735752115999,3.2078,3330.4,3329.7,3.2078]
[1735752116191,2.3007,3330.0,3329.9,0.30092]
[1735752117496,1.22229,3330.3,3329.7,3.2078]
[1735752117695,3.2221,3330.3,3329.7,3.2078]
[1735752117892,3.2221,3330.3,3330.2,0.30089]
[1735752118094,3.52298,3330.3,3330.2,0.30089]
[1735752118402,3.52298,3330.3,3329.5,0.75239]
[1735752118403,5.51857504,3330.3,3329.0,5.50427504]
[1735752118699,0.30096,3329.5,3329.4,0.30096]
[1735752119100,0.9148,3329.5,3329.4,0.30096]
[1735752119498,3.6551,3330.2,3329.4,3.2078]
[1735752119703,2.3007,3329.8,3329.7,0.30094]
[1735752119899,0.9061,3330.1,3329.7,0.30094]
[1735752120103,0.30086,3330.6,3330.5,0.30086]
[1735752120307,2.3007,3330.5,3330.4,0.30088]
[1735752120497,2.3007,3330.5,3330.4,3.50868]
[1735752122202,2.3007,3330.5,3330.4,0.30088]
[1735752122701,0.30088,3330.4,3330.3,0.30088]
[1735752123303,0.30088,3330.4,3330.2,3.2078]
[1735752123304,0.9061,3330.7,3330.2,3.2078]
[1735752123501,2.3007,3330.5,3330.2,3.2078]
[1735752123899,2.3007,3330.5,3330.4,0.30088]
[1735752124095,2.60157,3330.5,3330.4,0.30088]
[1735752124304,2.3007,3330.5,3330.4,0.30088]
[1735752125501,0.9061,3330.7,3330.6,0.30086]
[1735752126597,3.2068,3330.7,3330.6,0.30086]
[1735752126905,3.50765,3330.7,3330.6,0.30086]
[1735752127105,3.2068,3330.7,3330.2,3.2078]
[1735752127407,0.30087,3330.5,3330.2,3.2078]
[1735752128095,0.9061,3330.7,3330.2,3.2078]
[1735752128296,0.30086,3330.6,3330.5,0.30086]
[1735752129399,3.2078,3330.9,3330.3,2.29647504]
[1735752129593,3.2078,3330.9,3330.2,3.96003]
[1735752129594,2.3007,3330.7,3330.2,3.96003]
[1735752129794,2.3007,3330.3,3330.2,3.2078]
[1735752129999,2.3007,3330.3,3330.2,3.50869]
[1735752130705,2.7244,3330.3,3330.2,3.50869]
[1735752131103,0.4479,3330.5,3330.4,0.30088]
[1735752132202,3.6315,3330.9,3330.8,0.30084]
[1735752132703,5.9322,3330.9,3330.8,0.30084]
[1735752132906,0.4479,3331.2,3330.8,0.30084]
[1735752133099,2.3007,3331.2,3331.1,3.50861]
[1735752133595,0.30079,3331.4,3331.1,3.2078]
[1735752133795,2.3007,3331.2,3330.5,5.50427504]
[1735752133996,2.7519,3331.1,3331.0,0.30082]
[1735752134798,0.4556,3331.7,3330.9,3.2078]
[1735752134995,2.3007,3331.3,3331.2,0.3008]
[1735752135202,2.3007,3331.4,3331.3,0.30079]
[1735752137204,3.50854,3332.0,3331.9,0.30074]
[1735752137412,5.5085,3332.0,3331.9,0.30074]
[1735752138011,2.3007,3332.0,3331.9,3.50854]
[1735752138408,0.30066,3332.9,3332.7,0.30066]
[1735752138606,3.2092,3332.8,3332.7,0.30066]
[1735752138911,3.2092,3332.8,3332.6,0.30067]
[1735752139106,3.2092,3332.8,3332.7,0.30067]
[1735752139312,3.2092,3332.8,3332.6,0.30067]
[1735752139500,0.9085,3332.8,3332.2,2.29647504]
[1735752139705,2.3007,3332.3,3332.0,1.236]
[1735752139905,2.3007,3332.2,3332.1,0.30072]
[1735752140511,1.5975,3332.2,3332.1,0.30072]
[1735752141607,0.9044,3332.7,3332.1,0.30072]
[1735752141608,1.20507,3332.7,3332.1,0.30072]
[1735752141817,1.5975,3332.6,3332.5,0.30068]
[1735752142909,1.89818,3332.6,3332.4,0.30069]
[1735752143212,1.5975,3332.4,3331.9,2.29647504]
[1735752143515,1.5975,3332.4,3332.2,3.50851]
[1735752143715,0.3007,3332.3,3332.1,0.30072]
[1735752143918,0.30071,3332.2,3332.1,0.30072]
[1735752144316,0.30071,3332.3,3332.1,0.30072]
[1735752144518,1.5975,3332.4,3332.1,0.30072]
[1735752144820,0.30071,3332.2,3332.1,0.30072]
[1735752145410,3.6442,3332.6,3332.1,0.30072]
[1735752145613,1.5975,3332.3,3332.1,0.30071]
[1735752145813,1.5975,3332.3,3332.2,0.30071]
[1735752147318,1.8982,3332.3,3332.2,0.30071]
[1735752147509,1.5975,3332.3,3332.2,0.30071]
[1735752148017,1.5975,3332.3,3332.2,3.50851]
[1735752148219,0.9044,3332.7,3332.6,0.30068]
[1735752148421,2.5019,3332.7,3332.6,0.30068]
[1735752148621,2.80257,3332.7,3332.6,0.30068]
[1735752149819,2.5019,3332.7,3332.6,0.30068]
[1735752150508,1.5975,3332.7,3332.6,0.30068]
[1735752150712,1.5975,3332.7,3332.6,3.50848]
[1735752150917,1.22093,3333.1,3333.0,0.30064]
[1735752151115,0.9203,3333.1,3333.0,0.30064]
[1735752151310,2.5178,3333.1,3333.0,0.30064]
[1735752151713,2.5178,3333.1,3332.6,3.2078]
[1735752151916,1.5975,3332.7,3332.6,3.2078]
[1735752152112,1.5975,3332.7,3332.6,3.50847]
[1735752154617,1.89817,3332.7,3332.6,0.30067]
[1735752154815,0.30068,3332.6,3332.2,0.30071]
[1735752155120,1.5975,3332.4,3332.3,0.3007]
[1735752156319,4.1281,3333.1,3332.2,3.04826504]
[1735752156521,4.1281,3333.1,3332.6,0.30068]
[1735752156522,1.89817,3332.7,3332.6,0.30068]
[1735752158219,0.30067,3332.7,3332.6,0.30068]
[1735752158416,1.89817,3332.7,3332.6,0.30068]
[1735752159118,1.5975,3332.7,3332.6,0.30068]
[1735752159316,1.89817,3332.7,3332.6,0.30068]
[1735752159721,1.5975,3332.7,3332.6,0.30068]
[1735752160714,1.89817,3332.7,3332.6,0.30068]
[1735752161721,0.30068,3332.6,3332.5,3.50848]
[1735752161924,0.30068,3332.6,3332.5,3.2078]
[1735752162113,0.30068,3332.6,3332.5,3.50849]
[1735752162519,1.5975,3332.6,3332.1,3.2078]
[1735752162717,1.5975,3332.2,3331.7,3.2078]
[1735752163019,0.30075,3331.8,3331.7,3.2078]
[1735752163213,1.89825,3331.8,3331.7,3.50856]
[1735752166023,1.5975,3331.8,3331.7,3.50856]
[1735752166225,0.4466,3332.1,3332.0,0.30073]
[1735752166416,2.0441,3332.1,3332.0,0.30073]
[1735752167328,0.3007,3332.4,3332.3,0.3007]
[1735752167522,0.7332,3332.4,3332.3,0.3007]
[1735752167722,2.3307,3332.4,3332.3,0.3007]
[1735752172328,2.03,3332.4,3332.3,0.3007]
[1735752172837,2.33069,3332.4,3332.3,0.3007]
[1735752173027,2.03,3332.4,3331.8,40.8]
[1735752173343,2.03,3332.4,3332.1,0.30072]
[1735752173344,1.89822,3332.2,3332.1,0.30072]
[1735752173536,1.5975,3332.2,3332.1,0.30072]
[1735752179338,1.89821,3332.2,3332.1,0.30072]
[1735752179834,1.5975,3332.2,3332.1,0.30072]
[1735752180432,2.0313,3332.2,3332.1,0.30072]
[1735752180639,2.0313,3332.2,3331.7,3.2078]
[1735752180842,1.5975,3331.8,3331.6,0.30076]
[1735752181037,2.33126,3331.7,3331.6,0.30076]
[1735752181741,0.30078,3331.5,3331.4,0.30078]
[1735752182128,1.89828,3331.5,3331.4,0.30078]
[1735752182634,0.30079,3331.4,3331.3,3.50859]
[1735752182832,2.36179,3331.4,3331.3,3.50859]
[1735752184036,2.061,3331.4,3331.3,3.50859]
[1735752184446,1.5975,3331.4,3331.3,3.50859]
[1735752188042,0.4384,3332.0,3331.6,0.30077]
[1735752188240,1.5975,3332.0,3331.9,3.2078]
[1735752188443,1.19489,3332.4,3331.9,5.79896169]
[1735752188644,1.5975,3332.0,3331.9,5.79896169]
[1735752189141,0.4679,3332.4,3331.9,5.79896169]
[1735752189344,0.4679,3332.4,3332.3,0.3007]
[1735752189738,0.4263,3332.9,3332.8,0.30066]
[1735752190144,2.0238,3332.9,3332.8,0.30066]
[1735752190446,2.32445,3332.9,3332.8,0.30066]
[1735752191133,2.0238,3332.9,3332.3,3.6615]
[1735752191337,1.5975,3332.5,3332.4,0.30069]
[1735752192742,0.72695,3332.9,3332.8,0.30066]
[1735752192945,0.4263,3332.9,3332.8,0.30066]
[1735752193147,2.0238,3332.9,3332.8,0.30066]
[1735752194539,3.2078,3333.5,3332.8,2.29042169]
[1735752194740,1.5975,3333.1,3333.0,0.30064]
[1735752195047,0.454,3333.4,3332.9,0.30065]
[1735752195048,1.5975,3333.0,3332.9,0.30065]
[1735752199950,0.9051,3333.4,3332.8,5.49822169]
[1735752200147,0.9051,3333.4,3333.3,0.30061]
[1735752200449,1.2057,3333.4,3333.3,0.30061]
[1735752200650,2.8032,3333.4,3333.3,0.30061]
[1735752201153,2.5026,3333.4,3333.3,0.30061]
[1735752203442,1.5975,3333.4,3333.3,0.30061]
[1735752206250,0.8747,3334.0,3333.9,0.30056]
[1735752206653,2.4722,3334.0,3333.9,0.30056]
[1735752208163,2.77275,3334.0,3333.9,0.30056]
[1735752208351,2.4722,3334.0,3333.9,0.30056]